[Event "Int SVK-ch Open 2020"]
[Site "Drienica"]
[Date "2020.08.14"]
[Round "8.11"]
[White "Tomanek, Rafael"]
[Black "Striskova, Lucia"]
[Result "0-1"]
[ECO "D91"]
[WhiteElo "1835"]
[BlackElo "1706"]
[Annotator "NA"]
[PlyCount "76"]
[EventDate "2020.08.07"]
[EventType "swiss"]
[EventCountry "SVK"]
[SourceTitle "playchess.com"]
[Source "ChessBase"]
[SourceQuality "1"]
[TimeControl "40/5400+30:1800+30"]

1. d4 {[%emt 0:00:00]} Nf6 {[%emt 0:00:00]} 2. Nf3 {[%emt 0:00:00]} g6 3. c4 Bg7 {[%emt 0:00:05]} 4. Nc3 {[%emt 0:00:15]} d5 {[%emt 0:00:22]} 5. Bg5 {[%emt 0:00:28]} c6 {[%emt 0:02:01]} 6. e3 {[%emt 0:02:34]} O-O {[%emt 0:00:24]} 7. Bd3 {[%emt 0:01:20]} Na6 {[%emt 0:08:10] [#] D91: Grünfeld: 4 Nf3 Bg7 5 Bg5.} 8. Qe2 $146 {[%emt 0:08:10]} ({Predecessor:} 8. O-O Nb4 9. Be2 Bf5 10. a3 Na6 11. Qb3 dxc4 12. Qxb7 Qb6 13. Qxb6 axb6 14. Bxc4 b5 15. Be2 Rfd8 16. b4 Nc7 17. Ne5 Rd6 18. Bf3 Nfd5 19. Nxc6 {1-0 (19) Webb,L (2271)-Sidali,E (1724) Reykjavik 2017}) 8... Qa5 {[%emt 0:07:13]} 9. O-O {[%emt 0:05:22]} Bg4 {[%emt 0:00:36]} 10. c5 {[%emt 0:03:59]} e5 {[%emt 0:12:18]} 11. dxe5 {[%emt 0:06:11]} Nd7 {[%emt 0:00:15]} 12. h3 {[%emt 0:12:10]} (12. Bxa6 $15 bxa6 13. Rab1) 12... Bxf3 {[%emt 0:00:19]} 13. gxf3 {[%emt 0:00:12]} Nxe5 {[%emt 0:00:43]} 14. Bxa6 {[%emt 0:01:00]} bxa6 {[%emt 0:02:33]} 15. Be7 {[%emt 0:03:08]} Rfe8 {[%emt 0:01:12]} 16. Bd6 {[%emt 0:00:16]} Nd7 {[%emt 0:00:14]} 17. Rfc1 {[%emt 0:08:55]} Nxc5 {[%emt 0:08:41]} ({Black should try} 17... Rac8 $17) 18. Nxd5 {[%emt 0:02:21]} Nb3 {[%emt 0:04:32]} 19. Ne7+ {[%emt 0:02:21]} Rxe7 $1 {[%emt 0:01:11]} 20. Bxe7 {[%emt 0:00:43]} Nxa1 {[%emt 0:04:54]} 21. Rxa1 {[%emt 0:02:44]} Rb8 {[%emt 0:00:22]} 22. Rd1 {[%emt 0:05:06]} (22. Ba3 $11) 22... Qxa2 {[%emt 0:00:36]} 23. Rd8+ {[%emt 0:04:44]} (23. Qd3 $15) 23... Rxd8 {[%emt 0:00:08]} 24. Bxd8 {[%emt 0:00:07]} Qxb2 {[%emt 0:00:41]} 25. Qxa6 {[%emt 0:00:25] [#]} Qa1+ $1 {[%emt 0:00:04]} 26. Qxa1 {[%emt 0:00:24]} Bxa1 {[%emt 0:00:02]} 27. Ba5 {[%emt 0:00:32]} Kf8 {[%emt 0:00:31]} 28. Kf1 {[%emt 0:00:23]} Ke7 {[%emt 0:00:10]} 29. Ke2 {[%emt 0:00:39]} Kd6 {[%emt 0:00:12]} 30. Kd3 {[%emt 0:00:14]} Kc5 {[%emt 0:00:20]} 31. Kc2 {[%emt 0:00:09]} Kc4 {[%emt 0:00:35]} 32. f4 {[%emt 0:01:00]} Bf6 $19 {[%emt 0:01:36]} 33. Bd2 {[%emt 0:00:37]} Bd8 {[%emt 0:00:58]} 34. Bc3 {[%emt 0:00:28]} a5 {[%emt 0:00:06]} 35. Bd2 {[%emt 0:03:49]} a4 {[%emt 0:00:27]} 36. Bc3 {[%emt 0:00:03]} Be7 {[%emt 0:01:19]} 37. Be5 {[%emt 0:00:37]} a3 {[%emt 0:00:45]} 38. f3 {[%emt 0:02:09]} Bc5 {[%emt 0:00:27]} 0-1

[Event "Int SVK-ch Open 2020"]
[Site "Drienica"]
[Date "2020.08.14"]
[Round "8.12"]
[White "Ganzova, Veronika"]
[Black "Recky, Norbert"]
[Result "1/2-1/2"]
[ECO "B90"]
[WhiteElo "1614"]
[BlackElo "1811"]
[Annotator "NA RC"]
[PlyCount "76"]
[EventDate "2020.08.07"]
[EventType "swiss"]
[EventCountry "SVK"]
[SourceTitle "playchess.com"]
[Source "ChessBase"]
[SourceQuality "1"]
[TimeControl "40/5400+30:1800+30"]

{[%evp 10,75,18,20,21,32767,32767,23,32767,32767,32767,12,32767,32767,54,32767,32767,32767,32767,-59,32767,32767,-32,32767,32767,-73,-44,32767,32767,32767,32767,32767,32767,-39,32767,32767,32767,0,32767,0,88,61,269,32767,269,177,181,14,174,-116,-111,32767,-606,-529,32767,-588,-625,32767,32767,32767,-29990,-29995,132,-29996,-193,-29990,47,-29991]} 1. e4 {[%emt 0:00:00]} c5 {[%emt 0:00:00]} 2. Nf3 {[%emt 0:00:00]} d6 {[%emt 0:00:00]} 3. d4 {[%emt 0:00:11]} cxd4 {[%emt 0:00:00]} 4. Nxd4 {[%emt 0:00:35]} Nf6 {[%emt 0:00:00]} 5. Nc3 {[%emt 0:00:15]} a6 {[%emt 0:00:00]} 6. Bd3 {[%emt 0:01:03]} Nc6 {[%emt 0:00:33]} 7. Nxc6 {[%emt 0:01:27]} bxc6 {[%emt 0:00:07]} 8. O-O {[%emt 0:04:26]} e5 {[%emt 0:00:14]} 9. f4 {[%emt 0:04:22] B90: Sicilian Najdorf: Unusual White 6th moves, 6 Be3 Ng4 and 6 Be3 e5.} Be7 {[%emt 0:05:08]} 10. h3 {[%emt 0:04:52]} exf4 {[%emt 0:08:21]} 11. Rxf4 {[%emt 0:00:46] [#]} g5 $146 {[%emt 0:01:03]} (11... Nd7 $11) ({Predecessor:} 11... Be6 12. Be3 O-O 13. Qe2 a5 14. Rf2 Rb8 15. Na4 Rb4 16. b3 Nxe4 17. Bb6 Nc3 {1-0 (29) Capellades Subirana,M (2181)-Espuny Vinye,R (1932) Hospitalet de Llobregat 2017}) 12. Rf1 {[%emt 0:02:05]} g4 {[%emt 0:00:51]} 13. hxg4 {[%emt 0:01:38]} Nxg4 {[%emt 0:00:25]} 14. Qf3 {[%emt 0:06:30]} Be6 {[%emt 0:01:48]} 15. Ne2 {[%emt 0:01:44]} Rg8 {[%emt 0:05:46]} 16. Nf4 {[%emt 0:02:53]} Ne5 {[%emt 0:07:02]} 17. Qh5 {[%emt 0:01:49]} Bg4 {[%emt 0:02:45]} 18. Qh2 {[%emt 0:03:39]} Qb6+ {[%emt 0:04:44]} 19. Kh1 {[%emt 0:01:09]} h5 {[%emt 0:03:55]} 20. Qg1 {[%emt 0:01:33]} Qc7 {[%emt 0:00:37]} 21. Be3 {[%emt 0:01:06]} h4 {[%emt 0:02:48]} 22. Be2 {[%emt 0:04:48]} Qd7 {[%emt 0:01:04]} 23. Qf2 {[%emt 0:01:04]} h3 {[%emt 0:14:33]} 24. g3 $1 {[%emt 0:00:14]} h2 {[%emt 0:05:37]} (24... Bxe2 $11 25. Nxe2 Rb8) 25. Nd3 {[%emt 0:00:42]} ({Much worse is} 25. Qxh2 Bxe2 26. Qxe2 (26. Nxe2 O-O-O $15) 26... Rxg3 $15) 25... O-O-O $2 {[%emt 0:04:38]} ({Better is} 25... Bxe2 $14 26. Nxe5 (26. Qxe2 Nxd3 27. cxd3 Rxg3 $11) 26... Qe6 27. Qxe2 dxe5) 26. Nxe5 {[%emt 0:00:43]} dxe5 {[%emt 0:01:00]} 27. Bxa6+ {[%emt 0:01:47]} Kb8 {[%emt 0:00:31]} 28. b4 $2 {[%emt 0:03:03]} ({And not} 28. Kxh2 Rh8+ 29. Kg1 Rh7 $15) (28. Bc5 $18 Bxc5 29. Qxc5) 28... Bh3 {[%emt 0:04:42]} (28... f5 $1 $14) 29. Rfb1 $2 {[%emt 0:19:51] [#]} (29. Rad1 $1 $16 {[%cal Rd1d7]} Qg4 {[#]} 30. Bf4 $1 {[%mdl 512]}) 29... Bh4 $1 {[%emt 0:02:35]} 30. Bf4 {[%emt 0:04:55]} exf4 {[%emt 0:04:31]} 31. Qxf4+ {[%emt 0:03:51]} Qc7 {[%emt 0:00:32]} 32. Qxc7+ {[%emt 0:02:44]} Kxc7 {[%emt 0:00:15]} 33. gxh4 {[%emt 0:00:24]} Rd2 {[%emt 0:02:46]} 34. Bd3 {[%emt 0:03:01]} Rf2 {[%emt 0:05:02]} 35. Re1 {[%emt 0:03:16]} Bg2+ {[%emt 0:06:16]} 36. Kxh2 {[%emt 0:00:13]} Bxe4+ $2 {[%emt 0:00:29]} (36... Bf1+ {mates} 37. Kh1 Rf4 38. Bxf1 Rxh4+ 39. Bh3 Rxh3#) 37. Kh3 {[%emt 0:00:24]} Bg2+ $14 {[%emt 0:00:34]} 38. Kh2 {[%emt 0:00:11]} Bd5+ 1/2-1/2

[Event "Int SVK-ch Open 2020"]
[Site "Drienica"]
[Date "2020.08.15"]
[Round "8.13"]
[White "Garancovsky, Pavol"]
[Black "Verbovsky, Michal"]
[Result "1/2-1/2"]
[ECO "A85"]
[WhiteElo "2027"]
[BlackElo "2113"]
[Annotator "ChessBase"]
[PlyCount "59"]
[EventDate "2020.08.07"]
[EventType "swiss"]
[EventCountry "SVK"]
[TimeControl "40/5400+30:1800+30"]

1. d4 {[%emt 0:00:00]} d5 {[%emt 0:00:00]} 2. c4 {[%emt 0:00:11]} e6 {[%emt 0:00:07]} 3. Nc3 {[%emt 0:01:16]} f5 {[%emt 0:01:25]} 4. Nf3 {[%emt 0:05:40]} Nf6 {[%emt 0:00:38]} 5. Bg5 {[%emt 0:00:35]} c6 {[%emt 0:00:59]} 6. e3 {[%emt 0:01:51]} Bd6 {[%emt 0:00:34]} 7. Bd3 {[%emt 0:02:17]} O-O {[%emt 0:00:42]} 8. Qc2 {[%emt 0:00:43]} Bd7 {[%emt 0:12:00]} 9. Ne5 {[%emt 0:03:16]} Qc7 {[%emt 0:09:31]} 10. Bxf6 {[%emt 0:12:42]} gxf6 {[%emt 0:28:32]} 11. Nf3 {[%emt 0:02:37]} Bb4 {[%emt 0:03:11]} 12. O-O {[%emt 0:10:43]} Bxc3 {[%emt 0:01:07]} 13. Qxc3 {[%emt 0:00:33]} Qd6 {[%emt 0:08:39]} 14. Qb3 {[%emt 0:02:55]} dxc4 {[%emt 0:04:20]} 15. Bxc4 {[%emt 0:04:15]} b5 {[%emt 0:00:11]} 16. Be2 {[%emt 0:15:48]} Na6 {[%emt 0:00:42]} 17. Rfd1 {[%emt 0:02:33]} Nc7 {[%emt 0:01:30]} 18. g3 {[%emt 0:00:52]} Nd5 {[%emt 0:00:45]} 19. Rac1 {[%emt 0:01:28]} Rac8 {[%emt 0:04:25]} 20. Nh4 {[%emt 0:02:20]} Rfd8 {[%emt 0:02:44]} 21. Ng2 {[%emt 0:03:19]} e5 {[%emt 0:01:06]} 22. dxe5 {[%emt 0:09:22]} fxe5 {[%emt 0:00:31]} 23. Qd3 {[%emt 0:03:22]} Qb4 {[%emt 0:01:23]} 24. a3 {[%emt 0:00:57]} Qa4 {[%emt 0:01:20]} 25. b4 {[%emt 0:04:24]} e4 {[%emt 0:03:52]} 26. Qd4 {[%emt 0:00:49]} Qxa3 {[%emt 0:07:20]} 27. Qe5 {[%emt 0:00:24]} Qxb4 {[%emt 0:00:41]} 28. Rxd5 {[%emt 0:02:42]} cxd5 {[%emt 0:01:07]} 29. Qxd5+ {[%emt 0:00:15]} Kh8 {[%emt 0:01:30]} 30. Qe5+ {[%emt 0:03:53]} 1/2-1/2

[Event "Int SVK-ch Open 2020"]
[Site "Drienica"]
[Date "2020.08.14"]
[Round "8.13"]
[White "Strapec, Lukas"]
[Black "Harvan, Tomas"]
[Result "1/2-1/2"]
[ECO "A57"]
[WhiteElo "1525"]
[BlackElo "1794"]
[Annotator "NA"]
[PlyCount "61"]
[EventDate "2020.08.07"]
[EventType "swiss"]
[EventCountry "SVK"]
[SourceTitle "playchess.com"]
[Source "ChessBase"]
[SourceQuality "1"]
[TimeControl "40/5400+30:1800+30"]

1. d4 {[%emt 0:00:00]} Nf6 {[%emt 0:00:00]} 2. c4 {[%emt 0:00:28]} c5 {[%emt 0:00:01]} 3. d5 {[%emt 0:01:04]} b5 {[%emt 0:00:09]} 4. cxb5 {[%emt 0:00:59]} a6 {[%emt 0:00:09]} 5. b6 {[%emt 0:01:06]} d6 {[%emt 0:00:17]} 6. Nc3 {[%emt 0:03:03]} Nbd7 {[%emt 0:00:15]} 7. e4 {[%emt 0:03:58]} g6 {[%emt 0:00:21]} 8. Nf3 {[%emt 0:07:32]} Bg7 {[%emt 0:00:16]} 9. Qc2 {[%emt 0:04:14]} O-O {[%emt 0:01:03]} 10. Bd3 {[%emt 0:07:57]} Rb8 {[%emt 0:05:10]} 11. b3 {[%emt 0:08:57]} Qxb6 {[%emt 0:00:53]} 12. Bb2 {[%emt 0:10:15]} Qb4 {[%emt 0:13:12]} 13. O-O {[%emt 0:15:12]} Ng4 {[%emt 0:08:56]} 14. Nd2 {[%emt 0:06:55]} Nge5 15. Rab1 {[%emt 0:10:10]} Nxd3 {[%emt 0:20:16]} 16. Qxd3 {[%emt 0:00:38]} Ne5 {[%emt 0:00:40]} 17. Qc2 {[%emt 0:01:50]} a5 {[%emt 0:02:24]} 18. a3 {[%emt 0:07:52]} Qb7 {[%emt 0:04:00]} 19. h3 {[%emt 0:02:18]} Qa7 {[%emt 0:00:56]} 20. Nc4 {[%emt 0:01:44]} Ba6 {[%emt 0:08:02]} 21. Nd1 {[%emt 0:01:49]} Bxc4 {[%emt 0:21:02]} 22. bxc4 {[%emt 0:00:18]} Qa6 {[%emt 0:00:28]} 23. Ne3 {[%emt 0:01:48]} Qa7 {[%emt 0:10:24]} 24. f4 {[%emt 0:00:30]} Nd7 {[%emt 0:00:45]} 25. Bxg7 {[%emt 0:00:32]} Kxg7 {[%emt 0:00:03]} 26. Rxb8 {[%emt 0:01:00]} Rxb8 {[%emt 0:00:11]} 27. Rb1 {[%emt 0:00:34]} Rb6 {[%emt 0:01:19]} 28. Nd1 {[%emt 0:00:39]} Kg8 {[%emt 0:01:11]} 29. Rxb6 {[%emt 0:00:22]} Qxb6 {[%emt 0:00:45]} 30. Qb2 {[%emt 0:00:13]} Qxb2 {[%emt 0:00:40]} 31. Nxb2 {[%emt 0:00:02]} 1/2-1/2

[Event "Int SVK-ch Open 2020"]
[Site "Drienica"]
[Date "2020.08.15"]
[Round "8.14"]
[White "Ihnat, Marek"]
[Black "Panko Eduard ml."]
[Result "1/2-1/2"]
[ECO "B18"]
[WhiteElo "2065"]
[BlackElo "2007"]
[Annotator "ChessBase"]
[PlyCount "85"]
[EventDate "2020.08.07"]
[EventType "swiss"]
[EventCountry "SVK"]
[TimeControl "40/5400+30:1800+30"]

1. e4 {[%emt 0:00:00]} c6 {[%emt 0:00:00]} 2. d4 {[%emt 0:00:00]} d5 {[%emt 0:00:00]} 3. Nc3 {[%emt 0:00:00]} dxe4 {[%emt 0:00:00]} 4. Nxe4 {[%emt 0:00:03]} Bf5 {[%emt 0:00:11]} 5. Ng3 {[%emt 0:00:09]} Bg6 {[%emt 0:00:09]} 6. N1e2 {[%emt 0:00:02]} e6 {[%emt 0:00:40]} 7. Nf4 {[%emt 0:00:13]} Bd6 {[%emt 0:00:45]} 8. c3 {[%emt 0:00:26]} Nf6 {[%emt 0:00:54]} 9. h4 {[%emt 0:00:04]} Qc7 {[%emt 0:01:59]} 10. Qf3 {[%emt 0:00:05]} Nd5 {[%emt 0:19:17]} 11. Nxd5 {[%emt 0:06:39]} cxd5 {[%emt 0:00:30]} 12. h5 {[%emt 0:00:30]} Bc2 {[%emt 0:00:30]} 13. Bb5+ {[%emt 0:03:30]} Nc6 {[%emt 0:02:48]} 14. Qe2 {[%emt 0:17:19]} Bxg3 {[%emt 0:02:53]} 15. Qxc2 {[%emt 0:00:12]} Bd6 {[%emt 0:01:25]} 16. Be3 {[%emt 0:07:43]} h6 {[%emt 0:01:23]} 17. Qe2 {[%emt 0:02:04]} a6 {[%emt 0:11:29]} 18. Ba4 {[%emt 0:03:22]} Qe7 {[%emt 0:07:05]} 19. Kf1 {[%emt 0:04:57]} Rc8 {[%emt 0:01:18]} 20. Rh3 {[%emt 0:01:56]} O-O {[%emt 0:12:22]} 21. Bc2 {[%emt 0:04:15]} f5 {[%emt 0:00:31]} 22. Re1 {[%emt 0:02:20]} Qf6 {[%emt 0:06:14]} 23. f4 {[%emt 0:01:52]} Rfe8 {[%emt 0:09:01]} 24. Kg1 {[%emt 0:01:07]} Bb8 {[%emt 0:03:05]} 25. Qf3 {[%emt 0:01:28]} Na5 {[%emt 0:01:45]} 26. Rg3 {[%emt 0:07:18]} Nc4 {[%emt 0:01:31]} 27. Bc1 {[%emt 0:00:18]} Nd6 {[%emt 0:00:48]} 28. Rg6 {[%emt 0:01:39]} Qf7 {[%emt 0:01:07]} 29. Re2 {[%emt 0:02:37]} Ne4 {[%emt 0:02:57]} 30. g4 {[%emt 0:04:20]} Re7 {[%emt 0:03:25]} 31. gxf5 {[%emt 0:01:43]} exf5 {[%emt 0:00:01]} 32. Bb3 {[%emt 0:03:12]} Rce8 {[%emt 0:03:05]} 33. Reg2 {[%emt 0:08:24]} Kh8 {[%emt 0:00:07]} 34. Kh2 {[%emt 0:03:07]} Nf6 {[%emt 0:00:54]} 35. Bd2 {[%emt 0:04:17]} Ng4+ {[%emt 0:00:36]} 36. Kh1 {[%emt 0:01:02]} Re1+ {[%emt 0:06:18]} 37. Bxe1 {[%emt 0:07:29]} Rxe1+ {[%emt 0:00:31]} 38. Rg1 {[%emt 0:00:07]} Qe7 {[%emt 0:00:00]} 39. Rxe1 {[%emt 0:01:39]} Qxe1+ {[%emt 0:00:00]} 40. Kg2 {[%emt 0:00:07]} Qd2+ {[%emt 0:01:20]} 41. Kg1 {[%emt 0:30:31]} Qe1+ {[%emt 0:06:03]} 42. Kg2 {[%emt 0:00:00]} Qd2+ {[%emt 0:00:11]} 43. Kg1 {[%emt 0:00:00]} 1/2-1/2

[Event "Int SVK-ch Open 2020"]
[Site "Drienica"]
[Date "2020.08.14"]
[Round "8.14"]
[White "Sedlak, Mikulas"]
[Black "Stanko, Ivan"]
[Result "1/2-1/2"]
[ECO "B34"]
[WhiteElo "1573"]
[BlackElo "1848"]
[Annotator "NA"]
[PlyCount "79"]
[EventDate "2020.08.07"]
[EventType "swiss"]
[EventCountry "SVK"]
[SourceTitle "playchess.com"]
[Source "ChessBase"]
[SourceQuality "1"]
[TimeControl "40/5400+30:1800+30"]

1. e4 {[%emt 0:00:00]} c5 {[%emt 0:00:00]} 2. Nf3 {[%emt 0:00:00]} Nc6 {[%emt 0:00:00]} 3. d4 {[%emt 0:00:00]} cxd4 {[%emt 0:00:04]} 4. Nxd4 {[%emt 0:00:00]} g6 {[%emt 0:00:08]} 5. Nc3 {[%emt 0:00:14]} Bg7 {[%emt 0:00:22]} 6. Nxc6 {[%emt 0:00:45]} bxc6 {[%emt 0:00:22]} 7. Be3 {[%emt 0:00:47]} d6 {[%emt 0:01:17]} 8. Bc4 {[%emt 0:00:33]} Nf6 {[%emt 0:00:15]} 9. e5 {[%emt 0:00:30] B35: Sicilian: Accelerated Dragon with 5 Nc3: main line.} Ng4 {[%emt 0:00:30]} 10. exd6 {[%emt 0:01:45] [#]} exd6 $146 {[%emt 0:00:59]} ({Predecessor:} 10... Nxe3 $17 11. d7+ (11. fxe3 exd6 12. Qf3 Qh4+ 13. Qg3 Qxc4 14. Qxd6 Bg4 15. Qd3 Qxd3 16. cxd3 Rb8 17. Nd1 Bxd1 18. Rxd1 Rxb2 {0-1 (18) Waibel,U (1367)-Stumm,F (1748) GER email 2015}) 11... Bxd7 12. fxe3 O-O) 11. Bd4 {[%emt 0:04:59]} Qe7+ {[%emt 0:13:11]} 12. Be2 {[%emt 0:01:16]} Bxd4 {[%emt 0:10:08]} 13. Qxd4 {[%emt 0:00:26]} O-O {[%emt 0:00:07]} 14. O-O-O {[%emt 0:01:35]} Qg5+ {[%emt 0:05:05]} (14... d5 $1 $14) 15. f4 {[%emt 0:00:46]} Qa5 {[%emt 0:00:22]} 16. h3 {[%emt 0:02:22]} c5 {[%emt 0:00:28]} 17. Qg1 $2 {[%emt 0:03:26]} ({Don't take} 17. Qxd6 $6 Nf2 $16) ({White should play} 17. Qe4 $18 Bb7 18. Qxb7) 17... Nh6 {[%emt 0:02:56]} 18. Rxd6 {[%emt 0:02:27]} Nf5 {[%emt 0:00:26]} 19. Rd5 {[%emt 0:08:28]} Ng3 {[%emt 0:03:13]} 20. Rxc5 {[%emt 0:02:35]} Nxe2+ {[%emt 0:00:34] Remove Defender} 21. Kb1 {[%emt 0:01:35]} Nxc3+ {[%emt 0:03:52]} 22. Rxc3 {[%emt 0:03:19]} Be6 {[%emt 0:07:26]} 23. Ra3 {[%emt 0:01:57]} Qc7 {[%emt 0:00:44]} 24. Qf2 {[%emt 0:00:50]} a5 {[%emt 0:02:20]} 25. g4 {[%emt 0:01:01]} Qb7 {[%emt 0:00:34]} 26. Re1 {[%emt 0:02:21]} Rfb8 {[%emt 0:02:30]} 27. Qd4 {[%emt 0:04:27]} Rd8 {[%emt 0:03:40]} 28. Qf6 {[%emt 0:01:38] [#]} Qb4 $1 {[%emt 0:02:36]} 29. Rae3 {[%emt 0:00:56]} Qd2 {[%emt 0:02:31]} 30. b3 {[%emt 0:01:08]} a4 {[%emt 0:01:16]} 31. Rxe6 {[%emt 0:02:18]} axb3 {[%emt 0:01:20]} 32. axb3 {[%emt 0:03:19]} Qa5 $18 {[%emt 0:08:19]} (32... fxe6 $11 {and Black has nothing to worry.} 33. Qxe6+ Kg7 34. Qe7+ Kh8 35. Qe5+ Kg8 36. Qe6+ Kh8 37. Qe5+ Kg8 38. Qe6+) 33. Re7 {[%emt 0:03:51]} Qa2+ {[%emt 0:01:42]} 34. Kc1 {[%emt 0:00:19]} Qa3+ {[%emt 0:00:24]} 35. Qb2 {[%emt 0:03:03]} Qb4 {[%emt 0:01:19]} 36. Qf6 {[%emt 0:03:51]} Qa3+ {[%emt 0:01:08]} 37. Qb2 {[%emt 0:01:40]} Qd6 {[%emt 0:03:19]} 38. Qe5 {[%emt 0:03:06]} Qa3+ {[%emt 0:03:08]} 39. Qb2 {[%emt 0:01:53]} Qd6 {[%emt 0:00:06]} 40. Qe5 1/2-1/2

[Event "Int SVK-ch Open 2020"]
[Site "Drienica"]
[Date "2020.08.15"]
[Round "8.15"]
[White "Kucera, Michal"]
[Black "Buran, Jaroslav"]
[Result "0-1"]
[ECO "B04"]
[WhiteElo "1991"]
[BlackElo "2098"]
[Annotator "ChessBase"]
[PlyCount "74"]
[EventDate "2020.08.07"]
[EventType "swiss"]
[EventCountry "SVK"]
[TimeControl "40/5400+30:1800+30"]

1. e4 {[%emt 0:00:00]} Nf6 {[%emt 0:00:00]} 2. e5 {[%emt 0:00:00]} Nd5 {[%emt 0:00:00]} 3. d4 {[%emt 0:00:00]} d6 {[%emt 0:00:00]} 4. Nf3 {[%emt 0:00:00]} g6 {[%emt 0:00:18]} 5. Bc4 {[%emt 0:01:13]} c6 {[%emt 0:00:59]} 6. O-O {[%emt 0:01:44]} Bg7 {[%emt 0:00:09]} 7. Bb3 {[%emt 0:07:01]} O-O {[%emt 0:02:05]} 8. Re1 {[%emt 0:02:29]} dxe5 {[%emt 0:04:13]} 9. Nxe5 {[%emt 0:00:56]} Nd7 {[%emt 0:00:58]} 10. Nf3 {[%emt 0:06:08]} N7f6 {[%emt 0:00:58]} 11. c4 {[%emt 0:05:55]} Nb6 {[%emt 0:03:02]} 12. h3 {[%emt 0:04:21]} Bf5 {[%emt 0:03:05]} 13. Be3 {[%emt 0:06:56]} Qc7 {[%emt 0:00:28]} 14. Nc3 {[%emt 0:04:14]} h6 {[%emt 0:03:10]} 15. Qe2 {[%emt 0:09:30]} g5 {[%emt 0:01:09]} 16. Ne5 {[%emt 0:01:11]} Nbd7 {[%emt 0:00:27]} 17. g4 {[%emt 0:08:24]} Bh7 {[%emt 0:00:50]} 18. Nxd7 {[%emt 0:00:20]} Nxd7 {[%emt 0:00:38]} 19. c5 {[%emt 0:05:45]} e6 {[%emt 0:01:54]} 20. Qd2 {[%emt 0:04:03]} Rad8 {[%emt 0:01:06]} 21. h4 {[%emt 0:05:30]} Nxc5 {[%emt 0:01:39]} 22. Bc2 {[%emt 0:01:20]} Bxc2 {[%emt 0:00:58]} 23. Qxc2 {[%emt 0:00:31]} Bxd4 {[%emt 0:00:07]} 24. hxg5 {[%emt 0:07:18]} hxg5 {[%emt 0:00:36]} 25. Kg2 {[%emt 0:02:31]} f6 {[%emt 0:12:52]} 26. b4 {[%emt 0:01:14]} Bxc3 {[%emt 0:00:00]} 27. Qxc3 {[%emt 0:01:39]} Nd3 {[%emt 0:00:00]} 28. Rh1 {[%emt 0:00:50]} Qe5 {[%emt 0:00:40]} 29. Qxe5 {[%emt 0:01:47]} Nxe5 {[%emt 0:00:53]} 30. Kg3 {[%emt 0:00:33]} a6 {[%emt 0:00:57]} 31. Rh5 {[%emt 0:00:49]} Kg7 {[%emt 0:03:28]} 32. a4 {[%emt 0:05:42]} Rh8 {[%emt 0:00:54]} 33. Rxh8 {[%emt 0:02:12]} Kxh8 {[%emt 0:00:11]} 34. Re1 {[%emt 0:00:14]} Rd3 {[%emt 0:00:20]} 35. Kg2 {[%emt 0:02:19]} Nxg4 {[%emt 0:00:40]} 36. Bc5 {[%emt 0:00:26]} Ne5 {[%emt 0:02:26]} 37. Ba7 {[%emt 0:01:32]} Kg7 {[%emt 0:00:28]} 0-1

[Event "Int SVK-ch Open 2020"]
[Site "Drienica"]
[Date "2020.08.14"]
[Round "8.15"]
[White "Holicky, Miroslav"]
[Black "Kapolkova, Greta"]
[Result "1-0"]
[ECO "E01"]
[WhiteElo "1805"]
[BlackElo "1510"]
[Annotator "NA"]
[PlyCount "66"]
[EventDate "2020.08.07"]
[EventType "swiss"]
[EventCountry "SVK"]
[SourceTitle "playchess.com"]
[Source "ChessBase"]
[SourceQuality "1"]
[TimeControl "40/5400+30:1800+30"]

1. d4 {[%emt 0:00:00]} d5 {[%emt 0:00:00]} 2. c4 {[%emt 0:00:00]} e6 {[%emt 0:00:00]} 3. g3 {[%emt 0:00:00]} Nf6 {[%emt 0:00:29]} 4. Bg2 {[%emt 0:00:00]} c5 {[%emt 0:00:30]} 5. Nf3 {[%emt 0:01:16]} Nc6 {[%emt 0:00:57]} 6. cxd5 {[%emt 0:01:07]} Nxd5 {[%emt 0:01:59]} 7. Nc3 {[%emt 0:00:50]} Nxc3 {[%emt 0:05:12]} 8. bxc3 {[%emt 0:00:17]} cxd4 {[%emt 0:00:15] D41: Queen's Gambit Declined: Semi-Tarrasch with 5 cxd5.} 9. Nxd4 {[%emt 0:03:33]} Nxd4 {[%emt 0:02:34]} 10. Qxd4 {[%emt 0:05:22] [#]} Qa5 $146 {[%emt 0:02:52]} ({Predecessor:} 10... Qxd4 11. cxd4 Bd6 12. a4 Rb8 13. a5 Bd7 14. Be3 a6 15. d5 Bb4+ 16. Bd2 Bxd2+ 17. Kxd2 exd5 18. Bxd5 Bc6 19. Bxc6+ bxc6 {½-½ (31) Ding,L (2811)-Nepomniachtchi,I (2776) chess.com INT 2019}) 11. O-O {[%emt 0:10:04]} f6 {[%emt 0:01:02]} 12. Qc4 {[%emt 0:04:15]} Rb8 {[%emt 0:01:31]} 13. Bf4 {[%emt 0:02:24]} e5 {[%emt 0:00:48]} 14. Be3 {[%emt 0:00:09]} Bd7 {[%emt 0:01:05]} 15. Rfd1 {[%emt 0:04:22]} Rc8 {[%emt 0:01:03]} (15... Qb5 $142 16. Qxb5 Bxb5) 16. Qd3 {[%emt 0:01:11]} Be6 {[%emt 0:07:20]} 17. Qe4 {[%emt 0:13:14]} b6 {[%emt 0:01:14]} 18. Qb7 {[%emt 0:03:13]} Be7 {[%emt 0:06:28]} 19. Bd5 {[%emt 0:02:13]} Kf7 {[%emt 0:01:53]} 20. Bxe6+ {[%emt 0:02:32]} Kxe6 {[%emt 0:00:17]} 21. Rd7 {[%emt 0:00:14]} Rhe8 {[%emt 0:01:10]} 22. Rad1 {[%emt 0:01:55]} Qxa2 {[%emt 0:04:03]} 23. Rxe7+ {[%emt 0:01:57]} Rxe7 {[%emt 0:02:06]} 24. Qxc8+ {[%emt 0:00:08]} Kf7 {[%emt 0:00:46]} 25. Rd8 {[%emt 0:01:46]} Qxe2 {[%emt 0:00:58]} 26. Rf8+ {[%emt 0:00:36]} Kg6 {[%emt 0:00:21]} 27. Qd8 {[%emt 0:09:43]} Re6 {[%emt 0:01:07]} (27... Rf7 $142 28. Rxf7 Kxf7 29. Qd7+ Kf8 30. Qxa7 Qe1+ 31. Kg2 Qxc3 32. Qa8+ Kf7 33. Qd5+ Kg6 34. Qe4+ Kf7 35. Qxh7 Qc6+ 36. f3 Kf8) 28. Qd7 {[%emt 0:00:56]} Qc4 {[%emt 0:02:51]} 29. Qf7+ {[%emt 0:06:35]} Kf5 {[%emt 0:00:18]} 30. Qh5+ {[%emt 0:01:31]} Ke4 {[%emt 0:01:16]} 31. Qxh7+ {[%emt 0:00:34]} Kd5 {[%emt 0:00:32]} 32. Rd8+ {[%emt 0:03:01]} Kc6 {[%emt 0:01:21]} 33. Rc8+ {[%emt 0:00:08]} Kd5 1-0